bitfinex-derivatives/quotes_BTCF0:USTF0_20251120
["timestamp","ask_amount","ask_price","bid_price","bid_amount"]
[1763627447151,0.08739151,92328.0,92327.0,0.36253267]
[1763627448236,0.08739151,92328.0,92327.0,0.36556267]
[1763627448437,0.08739151,92328.0,92327.0,0.36859267]
[1763627448838,0.08739151,92328.0,92327.0,0.36253267]
[1763627449037,0.08739151,92328.0,92327.0,0.36153267]
[1763627449245,0.08739151,92328.0,92327.0,0.36253267]
[1763627451340,0.08739151,92328.0,92327.0,0.36556267]
[1763627451947,0.08739151,92328.0,92327.0,0.36859267]
[1763627452448,0.08739151,92328.0,92327.0,0.36759267]
[1763627452653,0.08739151,92328.0,92327.0,0.36859267]
[1763627454954,0.19581261,92328.0,92327.0,0.36859267]
[1763627455749,0.08739151,92328.0,92327.0,0.36859267]
[1763627456455,0.19581261,92328.0,92327.0,0.36759267]
[1763627456656,0.19581261,92328.0,92327.0,0.36859267]
[1763627458145,0.08739151,92328.0,92327.0,0.36859267]
[1763627459244,0.08739151,92328.0,92327.0,0.36253267]
[1763627461664,0.08743046,92328.0,92327.0,0.36253267]
[1763627462254,0.08743046,92328.0,92327.0,0.001]
[1763627462450,0.04635,92321.0,92320.0,0.3608]
[1763627462650,0.17935046,92321.0,92320.0,0.3608]
[1763627462854,0.17935046,92321.0,92320.0,0.36153267]
[1763627464154,0.28777976,92321.0,92320.0,0.36153267]
[1763627464951,0.28777976,92321.0,92320.0,0.36253267]
[1763627465350,0.28777976,92321.0,92320.0,0.3618]
[1763627465550,0.1547887,92313.0,92312.0,0.00016247]
[1763627465861,0.18338916,92313.0,92312.0,0.00016247]
[1763627469862,0.1548028,92301.0,92300.0,0.36599]
[1763627470063,0.26144083,92301.0,92300.0,0.37191267]
[1763627470659,0.15298803,92301.0,92300.0,0.37191267]
[1763627471049,0.15298803,92301.0,92300.0,0.37291267]
[1763627471757,0.15298803,92301.0,92300.0,0.001]
[1763627472064,0.1794056,92301.0,92300.0,0.001]
[1763627472264,0.1794056,92301.0,92292.0,0.3608]
[1763627472265,0.1548122,92293.0,92292.0,0.3608]
[1763627472560,0.18341825,92293.0,92292.0,0.3608]
[1763627473367,0.15701023,92293.0,92292.0,0.3608]
[1763627475065,0.26145023,92293.0,92292.0,0.3608]
[1763627475959,0.15298803,92293.0,92292.0,0.36153267]
[1763627476158,0.15298803,92293.0,92292.0,0.00073267]
[1763627479168,0.15298803,92293.0,92264.0,0.3608]
[1763627479169,0.1548452,92265.0,92264.0,0.3608]
[1763627479460,0.04635,92260.0,92255.0,0.1085058]
[1763627479661,0.04854803,92260.0,92259.0,0.01124844]
[1763627481358,0.04854803,92260.0,92259.0,0.01224844]
[1763627482364,0.00219803,92260.0,92259.0,0.01224844]
[1763627482762,0.00219803,92260.0,92259.0,0.01124844]
[1763627483459,0.06194803,92260.0,92259.0,0.01124844]
[1763627483666,0.06194803,92260.0,92259.0,0.00186844]
[1763627484163,0.16642803,92260.0,92259.0,0.00186844]
[1763627484365,0.16642803,92260.0,92259.0,0.00286844]
[1763627484661,0.16642803,92260.0,92259.0,0.00805844]
[1763627484872,0.16642803,92260.0,92259.0,0.01324844]
[1763627485056,0.16642803,92260.0,92259.0,0.00286844]
[1763627485468,0.16642803,92260.0,92259.0,0.00186844]
[1763627486460,0.16642803,92260.0,92259.0,0.00086844]
[1763627486664,0.16642803,92260.0,92259.0,0.00186844]
[1763627486863,0.16642803,92260.0,92259.0,0.12075064]
[1763627487069,0.03862803,92260.0,92259.0,0.12075064]
[1763627487269,0.03862803,92260.0,92259.0,0.11975064]
[1763627487568,0.06194803,92260.0,92259.0,0.11975064]
[1763627487971,0.06194803,92260.0,92259.0,0.12075064]
[1763627489067,0.06194803,92260.0,92259.0,0.12175064]
[1763627489472,0.06194803,92260.0,92259.0,0.12075064]
[1763627489768,0.06194803,92260.0,92259.0,0.01324844]
[1763627489963,0.06194803,92260.0,92259.0,0.12175064]
[1763627489964,0.16642803,92260.0,92259.0,0.12175064]
[1763627490364,0.16642803,92260.0,92259.0,0.12075064]
[1763627490762,0.06194803,92260.0,92259.0,0.11975064]
[1763627491066,0.00016258,92269.0,92268.0,0.01038]
[1763627491371,0.00016258,92269.0,92268.0,0.37191267]
[1763627492161,0.02319258,92269.0,92268.0,0.37191267]
[1763627492566,0.04700061,92269.0,92268.0,0.37191267]
[1763627493560,0.04700061,92269.0,92268.0,0.37291267]
[1763627494462,0.04700061,92269.0,92268.0,0.37391267]
[1763627495064,0.04700061,92269.0,92268.0,0.37291267]
[1763627496065,0.04700061,92269.0,92268.0,0.37191267]
[1763627496361,0.04700061,92269.0,92268.0,0.37291267]
[1763627497375,0.04700061,92269.0,92268.0,0.36253267]
[1763627499066,0.04700061,92269.0,92268.0,0.36153267]
[1763627499268,0.04700061,92269.0,92268.0,0.36253267]
[1763627499475,0.04700061,92269.0,92268.0,0.36772267]
[1763627500267,0.04700061,92269.0,92268.0,0.36672267]
[1763627500478,0.04700061,92269.0,92268.0,0.36253267]
[1763627500664,0.1535699,92261.0,92260.0,0.3608]
[1763627500978,0.04507,92251.0,92250.0,0.10867538]
[1763627501173,0.07357171,92251.0,92250.0,0.11459805]
[1763627501368,0.07357171,92251.0,92250.0,0.11978805]
[1763627501674,0.07357171,92251.0,92250.0,0.48058805]
[1763627502774,0.07357171,92251.0,92250.0,0.48158805]
[1763627507673,0.07359427,92251.0,92250.0,0.48158805]
[1763627508269,0.02632624,92251.0,92250.0,0.48158805]
[1763627508662,0.0001171,92261.0,92260.0,0.118881]
[1763627508869,0.04933882,92261.0,92260.0,0.48041367]
[1763627509072,0.07346685,92261.0,92260.0,0.37191267]
[1763627511266,0.04738513,92261.0,92260.0,0.37191267]
[1763627511472,0.0001171,92261.0,92260.0,0.37191267]
[1763627511671,0.0001171,92261.0,92260.0,0.37291267]
[1763627512769,0.0001171,92261.0,92260.0,0.37191267]
[1763627512969,0.0001171,92261.0,92260.0,0.37291267]
[1763627513878,0.0134,92274.0,92268.0,0.1188716]
[1763627514190,0.0134,92274.0,92268.0,0.48040427]
[1763627514481,0.02330258,92269.0,92268.0,0.48040427]
[1763627514679,0.00016258,92269.0,92268.0,0.48040427]
[1763627515382,0.00016258,92269.0,92268.0,0.48140427]
[1763627515676,0.05811,92280.0,92279.0,0.1188587]
[1763627515881,0.08393627,92280.0,92279.0,0.48039137]
[1763627516076,0.05811,92280.0,92279.0,0.48039137]
[1763627516676,0.06030803,92280.0,92279.0,0.48039137]
[1763627517176,0.05811,92280.0,92279.0,0.48039137]
[1763627517375,0.03618,92280.0,92279.0,0.48139137]
[1763627517680,0.05811,92280.0,92279.0,0.48139137]
[1763627517880,0.05811,92280.0,92279.0,0.48239137]
[1763627518283,0.03618,92280.0,92279.0,0.48239137]
[1763627518484,0.05811,92286.0,92285.0,0.1188516]
[1763627518673,0.05811,92286.0,92285.0,0.11958427]
[1763627519173,0.06030803,92286.0,92285.0,0.11958427]
[1763627519572,0.06030803,92286.0,92285.0,0.00073267]
[1763627519978,0.06030803,92286.0,92285.0,0.00173267]
[1763627520683,0.06030803,92286.0,92285.0,0.00073267]
[1763627520876,0.06030803,92286.0,92285.0,0.01111267]
[1763627521079,0.06418882,92286.0,92285.0,0.01111267]
[1763627521278,0.00219803,92286.0,92285.0,0.01111267]
[1763627522981,0.00219803,92286.0,92285.0,0.01211267]
[1763627523783,0.02533803,92286.0,92285.0,0.01211267]
[1763627524577,0.00016258,92289.0,92288.0,0.01038]
[1763627524778,0.00016258,92289.0,92288.0,0.37191267]
[1763627525485,0.02333258,92289.0,92288.0,0.37191267]
[1763627525985,0.02333258,92289.0,92288.0,0.37391267]
[1763627526287,0.04529258,92289.0,92288.0,0.37391267]
[1763627526681,0.04749061,92289.0,92288.0,0.37391267]
[1763627528183,0.04749061,92289.0,92288.0,0.37291267]
[1763627531690,0.04749061,92289.0,92288.0,0.48138077]
[1763627531989,0.04749061,92289.0,92288.0,0.48038077]
[1763627532199,0.04749061,92289.0,92288.0,0.48138077]
[1763627533087,0.04749061,92289.0,92288.0,0.48038077]
[1763627533290,0.04749061,92289.0,92288.0,0.48138077]
[1763627533792,0.04749061,92289.0,92288.0,0.36253267]
[1763627534494,0.04749061,92289.0,92288.0,0.47719077]
[1763627534687,0.04749061,92289.0,92288.0,0.48138077]
[1763627534891,0.04749061,92289.0,92288.0,0.48238077]
[1763627535093,0.04749061,92289.0,92288.0,0.36772267]
[1763627535295,0.04749061,92289.0,92288.0,0.36253267]
[1763627535493,0.04749061,92289.0,92282.0,0.1084742]
[1763627535494,0.05893,92280.0,92266.0,0.10448]
[1763627535686,0.15581613,92271.0,92249.0,0.07769414]
[1763627535886,0.15581613,92271.0,92249.0,0.01038]
[1763627535887,0.05893,92250.0,92249.0,0.01038]
[1763627536082,0.06112803,92250.0,92249.0,0.01111267]
[1763627536282,0.06112803,92250.0,92228.0,0.19432448]
[1763627536283,0.06112803,92250.0,92237.0,0.1085271]
[1763627536497,0.04513,92247.0,92239.0,0.1085246]
[1763627536695,0.04732803,92247.0,92246.0,0.00546102]
[1763627536889,0.04732803,92247.0,92246.0,0.00027102]
[1763627537189,0.07282889,92247.0,92246.0,0.00027102]
[1763627537384,0.07282392,92247.0,92246.0,0.00027102]
[1763627538392,0.04732803,92247.0,92246.0,0.00027102]
[1763627538696,0.15184803,92247.0,92246.0,0.00027102]
[1763627538898,0.17734399,92247.0,92246.0,0.00027102]
[1763627540296,0.15184803,92247.0,92246.0,0.00027102]
[1763627541691,0.02536803,92247.0,92246.0,0.01138369]
[1763627542086,0.04732803,92247.0,92246.0,0.01138369]
[1763627542287,0.04732803,92247.0,92246.0,0.00100369]
[1763627542495,0.04732803,92247.0,92246.0,0.00027102]
[1763627542695,0.04732803,92247.0,92246.0,0.00127102]
[1763627542894,0.40812803,92247.0,92246.0,0.00127102]
[1763627543095,0.51664433,92247.0,92246.0,0.00127102]
[1763627543295,0.40812803,92247.0,92246.0,0.11597852]
[1763627543796,0.40812803,92247.0,92246.0,0.00227102]
[1763627543992,0.40812803,92247.0,92246.0,0.00127102]
[1763627545201,0.40812803,92247.0,92246.0,0.00027102]
[1763627545894,0.40812803,92247.0,92246.0,0.00546102]
[1763627546100,0.40812803,92247.0,92246.0,0.00027102]
[1763627546892,0.51664433,92247.0,92246.0,0.00546102]
[1763627548794,0.40812803,92247.0,92246.0,0.00546102]
[1763627548993,0.40812803,92247.0,92246.0,0.00646102]
[1763627549401,0.40812803,92247.0,92246.0,0.00200369]
[1763627551311,0.40812803,92247.0,92246.0,0.00127102]
[1763627552095,0.40812803,92247.0,92246.0,0.00646102]
[1763627552595,0.40812803,92247.0,92246.0,0.00127102]
[1763627553606,0.40805803,92247.0,92246.0,0.01238369]
[1763627554602,0.04725803,92247.0,92246.0,0.01238369]
[1763627556399,0.00219803,92247.0,92246.0,0.01238369]
[1763627560601,0.00016258,92256.0,92255.0,0.1188869]
[1763627560908,0.05714258,92256.0,92255.0,0.48041957]
[1763627561104,0.00236061,92256.0,92255.0,0.48041957]
[1763627563104,0.04633061,92256.0,92255.0,0.48041957]
[1763627563610,0.00016258,92256.0,92255.0,0.48141957]
[1763627564412,0.0138,92268.0,92267.0,0.1084928]
[1763627564606,0.41778,92274.0,92273.0,0.1188658]
[1763627564906,0.41997803,92274.0,92273.0,0.11959847]
[1763627565109,0.05917803,92274.0,92273.0,0.11959847]
[1763627568402,0.05917803,92274.0,92273.0,0.12059847]
[1763627569008,0.05917803,92274.0,92273.0,0.11959847]
[1763627569207,0.05917803,92274.0,92273.0,0.12059847]
[1763627569608,0.05917803,92274.0,92273.0,0.12159847]
[1763627570617,0.05917803,92274.0,92273.0,0.00273267]
[1763627570914,0.05917803,92274.0,92273.0,0.002]
[1763627575008,0.1524652,92265.0,92264.0,0.00016258]
[1763627575203,0.15466323,92265.0,92264.0,0.00016258]
[1763627576406,0.15466323,92265.0,92264.0,0.00116258]
[1763627576606,0.04616803,92265.0,92264.0,0.00189525]
[1763627578916,0.165456,92274.0,92273.0,0.1084763]
[1763627579113,0.16765403,92274.0,92273.0,0.01511267]
[1763627580112,0.05917803,92274.0,92273.0,0.01611267]
[1763627580314,0.00219803,92274.0,92273.0,0.37691267]
[1763627581012,0.05698,92280.0,92279.0,0.01438]
[1763627581208,0.02224258,92283.0,92282.0,0.1228457]
[1763627581413,0.04633061,92283.0,92282.0,0.37591267]
[1763627581707,0.04413258,92283.0,92282.0,0.37591267]
[1763627581908,0.00016258,92283.0,92282.0,0.37591267]
[1763627582712,0.14746,92297.0,92296.0,0.1228292]
[1763627582907,0.17286096,92297.0,92296.0,0.12356187]
[1763627583109,0.14746,92297.0,92296.0,0.12356187]
[1763627583508,0.14965803,92297.0,92296.0,0.12356187]
[1763627585407,0.05591,92304.0,92303.0,0.01438]
[1763627585610,0.08348858,92304.0,92303.0,0.01511267]
[1763627585810,0.05810803,92304.0,92303.0,0.01511267]
[1763627586513,0.05810803,92304.0,92303.0,0.12355367]
[1763627586821,0.05810803,92304.0,92303.0,0.48435367]
[1763627586822,0.03408,92304.0,92303.0,0.48435367]
[1763627587121,0.02118155,92306.0,92305.0,0.01438]
[1763627587316,0.02118155,92306.0,92305.0,0.01511267]
[1763627587518,0.04301155,92306.0,92305.0,0.01511267]
[1763627587911,0.02118155,92306.0,92305.0,0.01511267]
[1763627588312,0.00011155,92306.0,92305.0,0.01511267]
[1763627588915,0.02118155,92306.0,92305.0,0.01511267]
[1763627590114,0.04301155,92306.0,92305.0,0.01511267]
[1763627592515,0.02118155,92306.0,92305.0,0.01511267]
[1763627593522,0.02118155,92306.0,92305.0,0.37591267]
[1763627593719,0.00011155,92306.0,92305.0,0.37591267]
[1763627594123,0.01357,92316.0,92315.0,0.1228069]
[1763627594318,0.05647,92323.0,92322.0,0.1227987]
[1763627594522,0.05647,92323.0,92322.0,0.12353137]
[1763627595220,0.16708553,92323.0,92322.0,0.01511267]
[1763627595723,0.16708553,92323.0,92322.0,0.00073267]
[1763627595919,0.16708553,92323.0,92322.0,0.00792267]
[1763627596731,0.16708553,92323.0,92322.0,0.00073267]
[1763627597028,0.16708553,92323.0,92322.0,2.67e-06]
[1763627597213,0.1648957,92316.0,92315.0,0.3608]
[1763627597419,0.16709373,92316.0,92315.0,0.3608]
[1763627600324,0.16709373,92316.0,92313.0,0.00016249]
[1763627600325,0.0429,92314.0,92313.0,0.00016249]
[1763627600524,0.04509803,92314.0,92313.0,0.00016249]
[1763627602724,0.40589803,92314.0,92313.0,0.00016249]
[1763627602925,0.05647,92298.0,92297.0,0.38391]
[1763627603125,0.05866803,92298.0,92297.0,0.40596]
[1763627604731,0.05866803,92298.0,92297.0,0.40696]
[1763627605130,0.05866803,92298.0,92297.0,0.3618]
[1763627606932,0.05866803,92298.0,92297.0,0.38285]
[1763627607334,0.05866803,92298.0,92297.0,0.40596]
[1763627608536,0.05866803,92298.0,92297.0,0.3618]
[1763627608732,0.05866803,92298.0,92297.0,0.001]
[1763627609323,0.07063229,92298.0,92297.0,0.04616]
[1763627609527,0.04509803,92298.0,92297.0,0.04616]
[1763627609939,0.04509803,92298.0,92297.0,0.04516]
[1763627610138,0.04509803,92298.0,92297.0,0.04616]
[1763627611440,0.15354493,92298.0,92297.0,0.04616]
[1763627611939,0.04509803,92298.0,92297.0,0.04616]
[1763627612640,0.05840803,92298.0,92297.0,0.04616]
[1763627613234,0.1523875,92289.0,92288.0,0.14721915]
[1763627613433,0.15458553,92289.0,92288.0,0.00016249]
[1763627613828,0.18012332,92289.0,92288.0,0.00016249]
[1763627614229,0.15458553,92289.0,92288.0,0.00016249]
[1763627614633,0.15458553,92289.0,92288.0,0.02305249]
[1763627615237,0.15458553,92289.0,92288.0,0.00016249]
[1763627616231,0.15458553,92289.0,92288.0,0.02305249]
[1763627616431,0.15458553,92289.0,92288.0,0.04622249]
[1763627617032,0.04612803,92289.0,92288.0,0.04622249]
[1763627617444,0.04612803,92289.0,92288.0,0.04722249]
[1763627618747,0.04612803,92289.0,92288.0,0.02405249]
[1763627619046,0.04612803,92289.0,92288.0,0.04722249]
[1763627620446,0.04612803,92289.0,92288.0,0.00016249]
[1763627620638,0.04612803,92289.0,92288.0,0.13151109]
[1763627621142,0.04612803,92289.0,92288.0,0.13251109]
[1763627621342,0.04612803,92289.0,92288.0,0.15568109]
[1763627622330,0.04612803,92289.0,92288.0,0.04722249]
[1763627622534,0.04612803,92289.0,92288.0,0.15568109]
[1763627626645,0.15458553,92289.0,92288.0,0.15568109]
[1763627627050,0.04612803,92289.0,92288.0,0.15568109]
[1763627628452,0.02156,92298.0,92297.0,0.154508]
[1763627628639,0.04393,92298.0,92297.0,0.515308]
[1763627629145,0.04393,92304.0,92303.0,0.154501]
[1763627629447,0.18942894,92304.0,92303.0,0.04606]
[1763627631048,0.1084457,92299.0,92298.0,0.02289]
[1763627631242,0.05724,92298.0,92297.0,0.3608]
[1763627631447,0.1084563,92293.0,92292.0,0.1084528]
[1763627631647,0.15458433,92293.0,92292.0,0.1545128]
[1763627631842,0.15458433,92293.0,92292.0,0.04606]
[1763627632040,0.04393,92291.0,92290.0,0.1313456]
[1763627632240,0.04612803,92291.0,92290.0,0.1313456]
[1763627632849,0.04612803,92291.0,92290.0,0.02289]
[1763627633050,0.04393,92289.0,92288.0,0.49231079]
[1763627633249,0.04612803,92289.0,92288.0,0.46942079]
[1763627633651,0.04612803,92289.0,92288.0,0.49231079]
[1763627634350,0.04612803,92289.0,92288.0,0.51548079]
[1763627635352,0.04612803,92289.0,92288.0,0.40702249]
[1763627635954,0.04612803,92289.0,92288.0,0.40802249]
[1763627637857,0.04612803,92289.0,92288.0,0.40702249]
[1763627638244,0.00219803,92289.0,92288.0,0.40702249]
[1763627638554,0.2568548,92300.0,92299.0,0.04606]
[1763627638758,0.25905283,92300.0,92299.0,0.04606]
[1763627639055,0.04612803,92300.0,92299.0,0.1545057]
[1763627639261,0.00219803,92300.0,92299.0,0.1545057]
[1763627639461,0.04612803,92300.0,92299.0,0.1545057]
[1763627640751,0.00219803,92300.0,92299.0,0.1545057]
[1763627642368,0.04300219,92307.0,92306.0,0.1534075]
[1763627642669,0.04520022,92307.0,92306.0,0.1534075]
[1763627642867,0.00236022,92307.0,92306.0,0.1534075]
[1763627643068,0.02376022,92307.0,92306.0,0.1534075]
[1763627643271,0.04520022,92307.0,92306.0,0.1534075]
[1763627645874,0.00016219,92307.0,92306.0,0.1534075]
[1763627646678,0.02156219,92307.0,92306.0,0.1534075]
[1763627647067,0.04520022,92307.0,92306.0,0.1534075]
[1763627647380,0.00016219,92307.0,92306.0,0.1534075]
[1763627647876,0.14732,92321.0,92320.0,0.153391]
[1763627648378,0.14951803,92321.0,92320.0,0.04497]
[1763627653470,0.04503803,92321.0,92320.0,0.04497]
[1763627654570,0.04503803,92321.0,92320.0,0.40577]
[1763627654775,0.00219803,92321.0,92320.0,0.40577]
[1763627655370,0.04311078,92326.0,92325.0,0.04497]
[1763627655778,0.04311078,92326.0,92325.0,0.1533852]
[1763627656471,0.04530881,92326.0,92325.0,0.1533852]
[1763627658081,0.04530881,92326.0,92325.0,0.1543852]
[1763627662786,0.04530881,92326.0,92325.0,0.1533852]
[1763627662981,0.04530881,92326.0,92325.0,0.1543852]
[1763627664085,0.00246881,92326.0,92325.0,0.1543852]
[1763627664282,0.00027078,92326.0,92325.0,0.1543852]
[1763627665582,0.05595,92340.0,92339.0,0.04497]
[1763627665887,0.08320826,92340.0,92339.0,0.04497]
[1763627666084,0.05595,92334.0,92333.0,0.153375]
[1763627666289,0.05814803,92334.0,92333.0,0.153375]
[1763627670583,0.05814803,92334.0,92333.0,0.1533758]
[1763627671291,0.08323681,92334.0,92333.0,0.1533758]
[1763627671594,0.0448,92331.0,92330.0,0.38217249]
[1763627671785,0.07208681,92331.0,92330.0,0.40434249]
[1763627672594,0.07208681,92331.0,92330.0,0.36096249]
[1763627672895,0.07208681,92331.0,92330.0,0.40614249]
[1763627674687,0.07208681,92331.0,92330.0,0.04534249]
[1763627674880,0.07208681,92331.0,92330.0,0.02280249]
[1763627675496,0.07208681,92331.0,92330.0,0.00016249]
[1763627675882,0.07208681,92331.0,92330.0,0.02280249]
[1763627677385,0.07208681,92331.0,92330.0,0.04534249]
[1763627678391,0.07208681,92331.0,92330.0,0.00016249]
[1763627678892,0.07208681,92331.0,92330.0,0.02280249]
[1763627679987,0.07208681,92331.0,92330.0,0.04534249]
[1763627681392,0.07208681,92331.0,92330.0,0.00016249]
[1763627684091,0.07208681,92331.0,92330.0,0.02280249]
[1763627684291,0.18049491,92331.0,92330.0,0.00016249]
[1763627684692,0.18049491,92331.0,92330.0,0.10857179]
[1763627684998,0.18049491,92331.0,92330.0,0.00016249]
[1763627686396,0.18049491,92331.0,92330.0,0.02280249]
[1763627686586,0.07208681,92331.0,92330.0,0.04534249]
[1763627686989,0.12896803,92331.0,92330.0,0.1038182]
[1763627687292,0.04588803,92331.0,92330.0,0.1038182]
[1763627687602,0.04588803,92331.0,92330.0,0.04534249]
[1763627688892,0.00219803,92331.0,92330.0,0.05733249]
[1763627689197,0.00219803,92331.0,92330.0,0.05833249]
[1763627690302,0.0425,92346.0,92345.0,0.1535717]
[1763627690600,0.04469803,92346.0,92345.0,0.5143717]
[1763627691297,0.04469803,92346.0,92345.0,0.57284441]
[1763627691699,0.02333803,92346.0,92345.0,0.57284441]
[1763627692200,0.04469803,92346.0,92345.0,0.5143717]
[1763627692903,0.00219803,92346.0,92345.0,0.5143717]
[1763627693204,0.02333803,92346.0,92345.0,0.5143717]
[1763627694401,0.52,92351.0,92350.0,0.1655558]
[1763627694602,0.0425,92365.0,92364.0,0.1535494]
[1763627694806,0.04469803,92365.0,92364.0,0.1535494]
[1763627696101,0.04569803,92365.0,92364.0,0.1535494]
[1763627697606,0.04669803,92365.0,92364.0,0.1535494]
[1763627698499,0.002,92365.0,92364.0,0.1535494]
[1763627698704,0.002,92365.0,92364.0,1.6655394]
[1763627699706,0.04669803,92365.0,92364.0,1.6535494]
[1763627702004,0.02533803,92365.0,92364.0,1.6535494]
[1763627702211,0.002,92365.0,92364.0,1.6654594]
[1763627702709,0.05729,92380.0,92379.0,0.1519818]
[1763627702910,0.14813,92380.0,92379.0,0.1519818]
[1763627703105,0.15032803,92380.0,92379.0,0.04363]
[1763627704511,0.15132803,92380.0,92379.0,0.02232]
[1763627704711,0.15132803,92380.0,92379.0,0.04363]
[1763627705009,0.15232803,92380.0,92379.0,0.04363]
[1763627709322,0.15132803,92380.0,92379.0,0.04363]
[1763627717817,0.12912803,92380.0,92379.0,0.04363]
[1763627718021,0.15132803,92380.0,92379.0,0.04363]
[1763627719618,0.14913,92380.0,92379.0,0.04363]
[1763627721315,0.17392241,92380.0,92379.0,0.04363]
[1763627721915,0.06952241,92380.0,92379.0,0.04363]
[1763627723324,0.10834528,92380.0,92379.0,0.04363]
[1763627724120,0.06952241,92380.0,92379.0,0.04363]
[1763627726126,0.18007104,92380.0,92379.0,0.04363]
[1763627726326,0.23282012,92380.0,92379.0,0.04363]
[1763627727420,0.12446952,92380.0,92379.0,0.04363]
[1763627728226,0.08552044,92380.0,92379.0,0.04363]
[1763627729429,0.04374,92379.0,92378.0,0.0769825]
[1763627729627,0.10971425,92379.0,92378.0,0.0769825]
[1763627730620,0.10976574,92379.0,92378.0,0.0769825]
[1763627731025,0.10976574,92379.0,92378.0,0.4377825]
[1763627731227,0.07078193,92379.0,92378.0,0.4377825]
[1763627738233,0.0685839,92379.0,92378.0,0.4377825]
[1763627738423,0.0248439,92379.0,92378.0,0.4377825]
[1763627738931,0.0472139,92379.0,92378.0,0.4377825]
[1763627739128,0.0703139,92379.0,92378.0,0.4377825]
[1763627743238,0.04547,92379.0,92378.0,0.4377825]
[1763627744725,0.0138,92385.0,92384.0,0.1083459]
[1763627744726,0.03617,92385.0,92384.0,0.1083459]
[1763627744932,0.05927,92385.0,92384.0,0.1083459]
[1763627746430,0.05927,92385.0,92384.0,0.1093459]
[1763627746631,0.05927,92385.0,92384.0,0.1103459]
[1763627747337,0.05927,92385.0,92375.0,0.00016239]
[1763627747338,0.0591,92376.0,92375.0,0.00016239]
[1763627747637,0.1083757,92359.0,92358.0,0.04318]
[1763627747940,0.02711025,92359.0,92358.0,1.54318]
[1763627750136,0.00219803,92359.0,92358.0,1.54318]
[1763627750934,0.00016208,92368.0,92367.0,0.04318]
[1763627751134,0.00236011,92368.0,92367.0,0.04318]
[1763627752637,0.11072481,92368.0,92367.0,0.04318]
[1763627753354,0.00236011,92368.0,92367.0,0.1515459]
[1763627753741,0.00016208,92368.0,92367.0,0.1515459]
[1763627754452,0.00016208,92368.0,92367.0,0.04318]
[1763627755158,0.10852678,92368.0,92367.0,0.04318]
[1763627755345,0.00016208,92368.0,92367.0,0.04318]
[1763627755854,0.00016208,92368.0,92367.0,0.04418]
[1763627756355,0.00016208,92368.0,92367.0,0.04318]
[1763627760760,0.1083474,92383.0,92382.0,0.05588]
[1763627760956,0.11054543,92383.0,92382.0,0.05588]
[1763627763551,0.11054543,92383.0,92382.0,0.05688]
[1763627766062,0.11054543,92383.0,92382.0,0.05588]
[1763627766955,0.1083541,92377.0,92376.0,0.05569]
[1763627767153,0.11055213,92377.0,92376.0,0.05569]
[1763627771057,0.1191377,92374.0,92373.0,0.00016239]
[1763627771251,0.25263407,92374.0,92373.0,0.00016239]
[1763627771662,0.31096581,92374.0,92373.0,0.00016239]
[1763627771864,0.1535353,92359.0,92353.0,0.3608]
[1763627772064,0.18267167,92359.0,92353.0,0.3608]
[1763627772962,0.18267167,92359.0,92353.0,0.4691819]
[1763627773360,0.18267167,92359.0,92353.0,0.3608]
[1763627774170,0.18267167,92359.0,92358.0,1.51298]
[1763627781373,0.15573333,92359.0,92358.0,1.51298]
[1763627783474,0.36096239,92368.0,92367.0,0.04299]
[1763627783680,0.00016239,92368.0,92367.0,0.04299]
[1763627783984,2.39e-06,92368.0,92367.0,0.04299]
[1763627786780,2.39e-06,92368.0,92367.0,0.04399]
[1763627788574,0.04614042,92368.0,92367.0,0.04399]
[1763627789870,0.04614042,92368.0,92367.0,0.04299]
[1763627792683,2.39e-06,92368.0,92367.0,0.1083658]
[1763627795876,2.39e-06,92368.0,92367.0,0.1093658]
[1763627797370,2.39e-06,92368.0,92367.0,0.1083658]
[1763627797572,2.39e-06,92368.0,92367.0,0.1093658]
[1763627799185,2.39e-06,92368.0,92367.0,0.1083658]
[1763627799389,2.39e-06,92368.0,92367.0,0.1093658]
[1763627800185,2.39e-06,92368.0,92367.0,0.1083658]
[1763627800982,2.39e-06,92368.0,92367.0,0.1093658]
[1763627804490,0.04361239,92368.0,92367.0,0.04698]
[1763627804689,0.04581042,92368.0,92367.0,0.04698]
[1763627804989,0.04581042,92368.0,92367.0,0.001]
[1763627805389,0.1083659,92367.0,92366.0,0.3608]
[1763627805594,0.15417393,92367.0,92366.0,0.38398]
[1763627806393,0.15417393,92367.0,92366.0,0.40678]
[1763627806695,0.15417393,92367.0,92366.0,0.04598]
[1763627809087,0.1519829,92361.0,92360.0,0.05949]
[1763627809290,0.15418093,92361.0,92360.0,0.05949]
[1763627811400,0.18105629,92361.0,92360.0,0.05949]
[1763627812387,0.07268339,92361.0,92360.0,0.05949]
[1763627814105,0.02907339,92361.0,92360.0,0.05949]
[1763627814513,0.02907339,92361.0,92360.0,0.06049]
[1763627814715,0.05020339,92361.0,92360.0,0.06049]
[1763627814912,0.07268339,92361.0,92360.0,0.06049]
[1763627815607,0.05020339,92361.0,92360.0,0.06049]
[1763627815805,0.02907339,92361.0,92360.0,0.06049]
[1763627816011,0.07268339,92361.0,92360.0,0.06049]
[1763627816206,0.07268339,92361.0,92360.0,0.05949]
[1763627816413,0.07268339,92361.0,92360.0,0.06049]
[1763627817712,0.07268339,92361.0,92360.0,0.05949]
[1763627818016,0.07268339,92361.0,92360.0,0.06049]
[1763627818419,0.05020339,92361.0,92360.0,0.06049]
[1763627818712,0.05020339,92361.0,92360.0,0.05949]
[1763627818906,0.02907339,92361.0,92360.0,0.05949]
[1763627819103,0.02687536,92361.0,92360.0,0.05949]
[1763627820511,2.39e-06,92368.0,92367.0,0.1083659]
[1763627820716,0.02689127,92368.0,92367.0,0.1083659]
[1763627821123,0.02689127,92368.0,92367.0,0.1543459]
[1763627821525,2.39e-06,92368.0,92367.0,0.1083659]
[1763627821815,2.39e-06,92368.0,92367.0,0.1093659]
[1763627830324,0.04316239,92368.0,92367.0,0.04336]
[1763627830515,0.04536042,92368.0,92367.0,0.04336]
[1763627831323,0.07198391,92368.0,92367.0,0.04336]
[1763627832125,0.07198391,92368.0,92367.0,0.04236]
[1763627835225,0.04536042,92368.0,92367.0,0.04236]
[1763627835418,0.07198443,92368.0,92367.0,0.04236]
[1763627835820,0.04316,92362.0,92361.0,0.1507328]
[1763627836024,0.15372973,92362.0,92361.0,0.04236]
[1763627836724,0.02429803,92362.0,92361.0,0.04236]
[1763627836929,0.10436,92367.0,92366.0,0.150727]
[1763627837128,0.10436,92367.0,92366.0,0.511527]
[1763627837426,2.39e-06,92368.0,92366.0,0.469167]
[1763627838128,2.39e-06,92368.0,92366.0,0.470167]
[1763627839333,0.02663931,92367.0,92366.0,0.470167]
[1763627839633,0.07199734,92367.0,92366.0,0.40416]
[1763627840626,0.07199734,92367.0,92366.0,0.40316]
[1763627841232,0.02883734,92367.0,92366.0,0.40316]
[1763627841431,0.00219803,92367.0,92366.0,0.40316]